[Event "Romanian Team Blitz Open 2022"]
[Site "Sebes"]
[Date "2022.12.04"]
[Round "4.17"]
[White "Patrascu, Catalin-Lucian"]
[Black "Miron, Toma"]
[Result "1-0"]
[ECO "B76"]
[WhiteElo "2279"]
[BlackElo "2188"]
[Annotator "TA"]
[PlyCount "99"]
[EventDate "2022.12.04"]
[EventType "blitz"]
[EventCountry "ROU"]
[SourceTitle "playchess.com"]
[Source "ChessBase"]
[SourceQuality "1"]
[TimeControl "180+2"]

{[%evp 19,98,42,74,31,60,64,70,25,115,15,75,56,37,0,89,-75,-66,-175,-144,-166,-52,-146,-136,-154,-137,-148,0,0,0,0,69,72,181,183,149,115,120,112,170,10,149,108,105,122,110,121,347,325,409,353,322,55,472,375,495,16,11,13,12,0,0,0,0,0,0,0,0,0,0,0,12845,12846,29988,12847,29990,12846,29992,29991,29993,29994,29999]} 1. e4 {[%emt 0:00:01]} c5 {[%emt 0:00:01]} 2. Nf3 {[%emt 0:00:01]} d6 {[%emt 0:00:01]} 3. d4 {[%emt 0:00:01]} cxd4 {[%emt 0:00:02]} 4. Nxd4 {[%emt 0:00:02]} Nf6 {[%emt 0:00:01]} 5. Nc3 {[%emt 0:00:01]} g6 {[%emt 0:00:00]} 6. Be3 {[%emt 0:00:03]} Bg7 {[%emt 0:00:01]} 7. f3 {[%emt 0:00:02]} O-O {[%emt 0:00:02]} 8. Qd2 {[%emt 0:00:01]} Nc6 {[%emt 0:00:01]} 9. O-O-O $1 {[%emt 0:00:02] The main line 9.0-0-0 scores better than 9.Bc4.} d5 {[%emt 0:00:00]} 10. Qe1 {[%emt 0:00:05]} e6 {[%emt 0:00:04]} 11. Nb3 {[%emt 0:00:19] B76: Sicilian Dragon: Yugoslav Attack, 9 g4 and 9 0-0-0.} a5 {[%emt 0:00:04] [#]} 12. a4 $146 {[%emt 0:00:05]} ({Predecessor:} 12. Na4 Bd7 13. Bb6 Qc8 14. Bc5 Nb4 15. Nb6 Qc6 16. a4 Rad8 17. e5 Qc7 18. exf6 Bxf6 19. Nxd7 Rxd7 {1-0 (59) Pintor,S (2047)-Guimaraes,R (2065) Sao Joao da Madeira 2014}) 12... Nb4 {[%emt 0:00:03]} 13. Bb5 {[%emt 0:00:07] next Bc5 is good for White. White is slightly better.} Qc7 {[%emt 0:00:20]} (13... Bd7 $11) 14. Kb1 {[%emt 0:00:07]} (14. Bc5 $1 $16) 14... dxe4 {[%emt 0:00:14]} (14... e5 $1 $11) 15. Bc5 $16 {[%emt 0:00:09]} exf3 {[%emt 0:00:25]} 16. gxf3 {[%emt 0:00:10]} (16. Bd6 {looks sharper.} Qb6 17. gxf3 Rd8 18. Qg3) 16... Rd8 {[%emt 0:00:09] Prevents Bd6.} (16... Nfd5 $11) 17. Rxd8+ $2 {[%emt 0:00:02]} (17. Qg3 $16 {is necessary to keep the advantage.} e5 18. Rxd8+ Qxd8 19. Rd1 (19. Qxe5 $2 Bf5 $19)) 17... Qxd8 $17 {[%emt 0:00:01]} 18. Qf2 {[%emt 0:00:25]} (18. Qh4 $15) 18... Nfd5 $19 {[%emt 0:00:04]} 19. Nxd5 {[%emt 0:00:02]} Qxd5 {[%emt 0:00:10]} (19... Nxd5 $19 20. Qe2 Bd7) 20. Qe2 {[%emt 0:00:35]} (20. Qd2 $15) 20... Bd7 $17 {[%emt 0:00:12]} 21. Rd1 {[%emt 0:00:32][%cal Bh1d1,Bd1d7,Bd7b7][%mdl 32]} Bxb5 {[%emt 0:00:03]} 22. axb5 {[%emt 0:00:01]} Qe5 {[%emt 0:00:09]} ({Black should try} 22... Qh5 $17 {Strongly threatening ...Rc8.} 23. Rd7 Bf6 24. Rxb7 a4 25. Bxb4 axb3 26. cxb3 Qd5) 23. Qxe5 $11 {[%emt 0:00:03]} Bxe5 {[%emt 0:00:01]} 24. Rd7 {[%emt 0:00:09]} Nd5 {[%emt 0:00:20]} (24... Bxh2 $11 25. c3 a4) 25. Rxb7 $14 {[%emt 0:00:06] c4 is the strong threat.} Bxh2 {[%emt 0:00:04]} (25... a4 $16 26. Nc1 a3 27. Bxa3 Bxh2) 26. c4 $1 $18 {[%emt 0:00:07]} Nf6 {[%emt 0:00:12]} 27. Bd4 {[%emt 0:00:07][%mdl 1024] Against h5. White has strong compensation. White has more active pieces.} e5 {[%emt 0:00:02]} 28. Be3 {[%emt 0:00:05] Black must now prevent b6.} a4 {[%emt 0:00:06]} (28... Re8 $16) 29. Nc1 $2 {[%emt 0:00:22]} (29. Nd2 $1 $18) 29... a3 {[%emt 0:00:04]} (29... e4 $11 {keeps the balance.} 30. f4 Ng4) 30. c5 $16 {[%emt 0:00:03]} axb2 {[%emt 0:00:02]} 31. Kxb2 {[%emt 0:00:00]} e4 {[%emt 0:00:03]} 32. fxe4 {[%emt 0:00:04]} ({Worse is} 32. Bd4 exf3 $1 33. Nd3 (33. Bxf6 $2 f2 $19) 33... Ne4 $15) 32... Be5+ $2 {[%emt 0:00:02]} (32... Re8 $16) 33. Kb3 $18 {[%emt 0:00:02]} Nxe4 {[%emt 0:00:02][%cal Oe5f4]} 34. Nd3 {[%emt 0:00:02] Against Bf4} Bg3 {[%emt 0:00:06]} 35. c6 $2 {[%emt 0:00:01]} ({Better is} 35. Re7 $18 Rd8 36. Kc4) 35... Bd6 $2 {[%emt 0:00:10][%mdl 8192]} (35... Nd6 $14 36. Rb6 h5) 36. Kc4 {[%emt 0:00:01]} Nf6 {[%emt 0:00:07]} 37. c7 $2 {[%emt 0:00:04]} (37. Bc5 $18 Bh2 38. Re7) 37... Ne8 $11 {[%emt 0:00:06]} 38. b6 {[%emt 0:00:01]} Rc8 $1 {[%emt 0:00:11]} 39. Bf4 {[%emt 0:00:04]} (39. Kd5 {simplifies} Bxc7 40. bxc7 Nxc7+ 41. Kd6) 39... Bxf4 {[%emt 0:00:05]} 40. Nxf4 {[%emt 0:00:01][%mdl 4096] Endgame KRN-KRN} Nd6+ {[%emt 0:00:02]} 41. Kd5 {[%emt 0:00:02]} Nxb7 {[%emt 0:00:01]} 42. Kc6 {[%emt 0:00:00]} Na5+ {[%emt 0:00:03]} 43. Kd7 {[%emt 0:00:01]} Ra8 {[%emt 0:00:14] Threatens to win with ...h5.} 44. Nd5 {[%emt 0:00:02]} Nc4 $2 {[%emt 0:00:04][%mdl 8192]} (44... Nb7 $11) 45. b7 $18 {[%emt 0:00:02]} (45. c8=B $2 {too greedy.} Nxb6+ $1 {[%mdl 512]} 46. Nxb6 Ra7+ 47. Kd6 Kg7 $19) (45. c8=R+ $2 {loses.} Rxc8 46. Kxc8 Nxb6+ $1 {[%mdl 512]} 47. Nxb6 h5 $19) 45... Ne5+ {[%emt 0:00:08]} 46. Kd6 {[%emt 0:00:03]} (46. Ke7 $142 Nc6+ 47. Kf6 Ra6 48. c8=Q+ Nd8+ 49. Ke7 Kg7 50. Qxd8 Re6+ 51. Kd7) 46... Nc4+ {[%emt 0:00:02]} 47. Kc5 {[%emt 0:00:02]} (47. Ke7 $142 Re8+ 48. Kxe8 Kg7 49. c8=Q Nd6+ 50. Ke7 Nf5+ {[#]} 51. Qxf5 $3 {[%mdl 512]} gxf5 52. b8=Q) 47... Ra4 {[%emt 0:00:05]} 48. c8=Q+ {[%emt 0:00:04] White mates.} Kg7 {[%emt 0:00:01]} 49. b8=Q {[%emt 0:00:04][%csl Gb8][%cal Rc8f8]} Nd2 {[%emt 0:00:04]} 50. Qf8# {[%emt 0:00:03] White used his chance.   Weighted Error Value: White=0.64/Black=0.93} 1-0

[Event "Romanian Team Blitz Open 2022"]
[Site "Sebes"]
[Date "2022.12.04"]
[Round "4.18"]
[White "Campian, Cristian"]
[Black "Creanga, Robert-Ionut"]
[Result "0-1"]
[ECO "B12"]
[WhiteElo "1998"]
[BlackElo "2190"]
[Annotator "TA"]
[PlyCount "56"]
[EventDate "2022.12.04"]
[EventType "blitz"]
[EventCountry "ROU"]
[SourceTitle "playchess.com"]
[Source "ChessBase"]
[SourceQuality "1"]
[TimeControl "180+2"]

{[%evp 9,56,16,9,0,0,-1,20,20,37,0,15,-23,-18,-18,4,0,0,-17,-18,-27,0,0,0,-28,-34,-33,-20,-95,0,-49,50,-75,-92,-75,-80,-166,-133,-262,-223,-307,-299,-321,-298,-827,-804,-1120,-1116,-1102,-1102]} 1. e4 {[%emt 0:00:00]} c6 {[%emt 0:00:02]} 2. d4 {[%emt 0:00:03]} d5 {[%emt 0:00:00]} 3. e5 {[%emt 0:00:02]} Bf5 {[%emt 0:00:02]} 4. Be3 {[%emt 0:00:02]} e6 {[%emt 0:00:05]} 5. Nd2 {[%emt 0:00:03]} Nd7 {[%emt 0:00:07]} 6. f4 {[%emt 0:00:02] B12: Caro-Kann: Advance Variation.} h5 {[%emt 0:00:08]} 7. Ngf3 {[%emt 0:00:02]} a6 {[%emt 0:00:14]} 8. Be2 {[%emt 0:00:07] The position is equal.} c5 {[%emt 0:00:03]} 9. c3 {[%emt 0:00:01]} Nh6 {[%emt 0:00:08][%cal Bg8h6,Bh6g4,Bg4f2][%mdl 32] [#]} 10. O-O $146 {[%emt 0:00:10]} ({Predecessor:} 10. h3 Be7 11. O-O h4 12. c4 dxc4 13. Nxc4 Be4 14. dxc5 Nf5 15. b4 b5 16. cxb6 Nxe3 17. Nxe3 Qxb6 {1-0 (59) Merry,A (2237)-Lyell,M (2238) Purley 2013}) 10... Ng4 {[%emt 0:00:01]} 11. Bf2 {[%emt 0:00:01]} Nxf2 {[%emt 0:00:03]} 12. Rxf2 {[%emt 0:00:03]} Be7 {[%emt 0:00:04]} 13. a3 {[%emt 0:00:08]} Rc8 {[%emt 0:00:07]} 14. Rc1 {[%emt 0:00:15]} Qb6 {[%emt 0:00:05]} 15. b4 {[%emt 0:00:08]} cxb4 {[%emt 0:00:03]} 16. cxb4 {[%emt 0:00:04]} O-O {[%emt 0:00:07]} 17. Nb3 {[%emt 0:00:05] Against a5} Nb8 {[%emt 0:00:29]} 18. Ne1 {[%emt 0:00:08]} (18. Ng5 $11) 18... h4 {[%emt 0:00:07] Black is more active.} ({Black should play} 18... Rxc1 $17 19. Qxc1 Nc6) 19. Nd3 {[%emt 0:00:03]} (19. Nc5 $11 {feels stronger.}) 19... Qa7 {[%emt 0:00:09]} (19... Rxc1 $15 20. Qxc1 Nc6) 20. Ndc5 {[%emt 0:00:14]} (20. g4 $1 $14 {stays ahead.} Be4 21. Rxc8 Rxc8 22. Ndc5) 20... b6 $17 {[%emt 0:00:04]} 21. Nd3 {[%emt 0:00:04]} a5 {[%emt 0:00:12][%cal Ba6a5,Ba5a4][%mdl 32]} 22. b5 {[%emt 0:00:11]} (22. bxa5 $17 {might work better.} bxa5 23. a4) 22... Bxa3 $19 {[%emt 0:00:02]} 23. Rxc8 {[%emt 0:00:04]} (23. Ra1 $17 Be7 24. Bg4) 23... Rxc8 {[%emt 0:00:01]} 24. g4 {[%emt 0:00:11]} hxg3 {[%emt 0:00:10]} 25. hxg3 {[%emt 0:00:02]} a4 {[%emt 0:00:02] Prevents g4.} 26. Nd2 {[%emt 0:00:06] [#]} (26. Na1) 26... Bxd3 {Black is clearly winning.} 27. Bxd3 {[%emt 0:00:02]} Rc1 {[%emt 0:00:02]} 28. Qxc1 {[%emt 0:00:22]} Bxc1 {[%emt 0:00:01] Weighted Error Value: White=0.75/Black=0.12 (very precise)} 0-1

[Event "Romanian Team Blitz Open 2022"]
[Site "Sebes"]
[Date "2022.12.04"]
[Round "4.19"]
[White "Butolo, Alexandru-Mircea"]
[Black "Sandru, Nicolae"]
[Result "0-1"]
[ECO "B01"]
[WhiteElo "2043"]
[BlackElo "1647"]
[Annotator "TA"]
[PlyCount "68"]
[EventDate "2022.12.04"]
[EventType "blitz"]
[EventCountry "ROU"]
[SourceTitle "playchess.com"]
[Source "ChessBase"]
[SourceQuality "1"]
[TimeControl "180+2"]

{[%evp 10,68,31,37,35,31,68,66,85,64,60,44,69,19,35,44,49,46,43,33,56,19,36,-16,18,17,20,13,18,3,19,-121,6,-6,-4,-3,-3,-30,-22,-10,40,22,33,33,37,37,37,25,58,0,33,0,54,40,47,47,86,0,24,8,8]} 1. e4 {[%emt 0:00:02]} d5 {[%emt 0:00:01]} 2. exd5 {[%emt 0:00:04]} Qxd5 {[%emt 0:00:01]} 3. Nc3 {[%emt 0:00:01]} Qa5 {[%emt 0:00:01]} 4. g3 {[%emt 0:00:01]} c6 {[%emt 0:00:01]} 5. Bg2 {[%emt 0:00:01]} Nf6 {[%emt 0:00:02]} 6. Nf3 {[%emt 0:00:02]} Bf5 $1 {[%emt 0:00:04][%mdl 4] is more profitable than 6...Bg4 at the moment. B01: Scandinavian Defence.} 7. d3 {[%emt 0:00:04]} Qc7 {[%emt 0:00:02]} 8. Bf4 {[%emt 0:00:02]} Qc8 {[%emt 0:00:06] White is slightly better.} 9. O-O {[%emt 0:00:03] [#]} (9. Qe2 {seems wilder.} Bg4 10. O-O-O e6 11. h3) 9... e6 $146 {[%emt 0:00:01]} ({Predecessor:} 9... Bh3 10. Re1 Bxg2 11. Kxg2 e6 12. Qd2 Bb4 13. a3 Ba5 14. b4 Bb6 15. Rad1 Ng4 {1-0 (34) Salamon,S-Vojtko,P Sarospatak 1998}) 10. h3 {[%emt 0:00:02]} Be7 {[%emt 0:00:03]} 11. Qd2 {[%emt 0:00:07]} ({White should try} 11. Nh4 $14) 11... O-O {[%emt 0:00:02]} 12. Nh4 {[%emt 0:00:15]} Bg6 {[%emt 0:00:09]} 13. Nxg6 {[%emt 0:00:02]} hxg6 {[%emt 0:00:01]} 14. a4 {[%emt 0:00:21]} Bb4 {[%emt 0:00:06]} 15. Be5 {[%emt 0:00:20]} Nbd7 {[%emt 0:00:11]} 16. Bxf6 {[%emt 0:00:13]} (16. f4 $14) 16... Nxf6 {[%emt 0:00:03]} 17. Qf4 {[%emt 0:00:06]} Ba5 {[%emt 0:00:11]} 18. b4 {[%emt 0:00:07]} Bc7 {[%emt 0:00:01]} 19. Qd2 {[%emt 0:00:04]} Qd7 {[%emt 0:00:02]} 20. b5 {[%emt 0:00:06] [#]} (20. Rab1 $11) 20... Nd5 {[%emt 0:00:08]} (20... Ba5 $1 $17 {aiming for ...Rac8.} 21. bxc6 bxc6) 21. Nxd5 {[%emt 0:00:05]} cxd5 {[%emt 0:00:06]} 22. Rfb1 {[%emt 0:00:11]} Rac8 {[%emt 0:00:03]} 23. Qe2 {[%emt 0:00:04]} Ba5 {[%emt 0:00:03]} 24. c4 {[%emt 0:00:03]} d4 {[%emt 0:00:24]} (24... dxc4 $11 25. dxc4 Rc7) 25. Rc1 {[%emt 0:00:15]} Bc3 {[%emt 0:00:02]} 26. Ra2 {[%emt 0:00:01]} b6 {[%emt 0:00:03]} 27. Bc6 {[%emt 0:00:23]} Qd6 {[%emt 0:00:02]} 28. Qe4 {[%emt 0:00:19]} Rfd8 {[%emt 0:00:10]} 29. Bb7 {[%emt 0:00:22]} ({White should play} 29. h4 $14) 29... Rc7 {[%emt 0:00:02]} 30. Bc6 {[%emt 0:00:01]} Re7 {[%emt 0:00:01]} (30... Rcc8 $11) 31. Kg2 {[%emt 0:00:08]} f5 {[%emt 0:00:01]} 32. Qf3 {[%emt 0:00:01]} g5 {[%emt 0:00:18]} 33. g4 {[%emt 0:00:05]} (33. Qh5 $16) 33... Rf8 {[%emt 0:00:11]} 34. Re2 {[%emt 0:00:05]} g6 {[%emt 0:00:15][%mdl 32768] Weighted Error Value: White=0.26 (precise) /Black=0.26 (precise) . Loss on time!?} 0-1

[Event "Romanian Team Blitz Open 2022"]
[Site "Sebes"]
[Date "2022.12.04"]
[Round "4.20"]
[White "Tarciuc, Ianis-Mihai"]
[Black "Prelipcean, Eric-Matei"]
[Result "1/2-1/2"]
[ECO "A38"]
[WhiteElo "1642"]
[BlackElo "1909"]
[Annotator "TA"]
[PlyCount "107"]
[EventDate "2022.12.04"]
[EventType "blitz"]
[EventCountry "ROU"]
[SourceTitle "playchess.com"]
[Source "ChessBase"]
[SourceQuality "1"]
[TimeControl "180+2"]

{[%evp 21,107,-20,-12,-35,-16,-22,-26,-31,-33,-34,-35,-46,-31,-37,-29,-40,42,36,67,0,0,0,0,0,0,0,0,-30,-16,-22,-6,-29,0,0,24,24,24,24,24,24,24,24,24,24,24,0,24,24,24,0,24,0,0,0,0,0,0,0,0,0,0,0,0,0,0,0,0,0,0,0,0,0,0,0,0,0,0,0,0,0,0,0,0,0,0,0,0,0]} 1. g3 {[%emt 0:00:01]} Nf6 {[%emt 0:00:03]} 2. Bg2 {[%emt 0:00:01]} g6 {[%emt 0:00:01]} 3. Nf3 {[%emt 0:00:02]} Bg7 {[%emt 0:00:01]} 4. c4 {[%emt 0:00:01]} c5 {[%emt 0:00:01]} 5. Nc3 {[%emt 0:00:02]} Nc6 {[%emt 0:00:01]} 6. O-O {[%emt 0:00:02]} O-O {[%emt 0:00:01]} 7. d3 {[%emt 0:00:05]} b6 {[%emt 0:00:01]} 8. a3 {[%emt 0:00:07]} Bb7 {[%emt 0:00:01]} 9. Rb1 {[%emt 0:00:02]} d5 {[%emt 0:00:00]} 10. cxd5 {[%emt 0:00:04]} Nxd5 {[%emt 0:00:03]} 11. Nxd5 {[%emt 0:00:08]} Qxd5 {[%emt 0:00:02]} 12. Bd2 {[%emt 0:00:23] A38: Symmetrical English vs ...g6: 4 Bg2 Bg7 5 Nf3 Nf6.} Qd7 {[%emt 0:00:14]} 13. Bc3 {[%emt 0:00:30]} Nd4 {[%emt 0:00:06] [#]} 14. Nxd4 $146 {[%emt 0:00:27] aiming for Bxb7. Black has an edge.} ({Predecessor:} 14. Bxd4 cxd4 15. Rc1 Rac8 16. Qd2 a5 17. Rxc8 Rxc8 18. Rc1 e5 19. Rc2 h6 20. Qc1 Rxc2 21. Qxc2 {0-1 (35) Roque Sola,J (2217)-Vagman,R (2287) Chess.com INT 2022}) 14... Bxg2 {[%emt 0:00:04][%mdl 64] [#]} 15. Kxg2 {[%emt 0:00:01]} cxd4 {[%emt 0:00:01]} 16. Bd2 {[%emt 0:00:24]} Qd5+ {[%emt 0:00:01]} 17. Kg1 {[%emt 0:00:10]} Rfc8 {[%emt 0:00:02]} 18. Qa4 {[%emt 0:00:25]} Rc7 {[%emt 0:00:12]} (18... Qe6 $15 19. Rfe1 a6) 19. Rfc1 {[%emt 0:00:05]} b5 {[%emt 0:01:04]} 20. Qd1 {[%emt 0:00:24]} ({White should try} 20. Qa6 $14 Qb7 21. Qxb7 Rxb7 22. Rc5) 20... Rac8 $11 {[%emt 0:00:03]} 21. Rxc7 {[%emt 0:00:20]} Rxc7 {[%emt 0:00:01]} 22. Rc1 {[%emt 0:00:00]} Qd7 {[%emt 0:00:10]} 23. Rxc7 {[%emt 0:00:00]} Qxc7 {[%emt 0:00:01]} 24. Qc1 {[%emt 0:00:00]} Qxc1+ {[%emt 0:00:02]} 25. Bxc1 {[%emt 0:00:00][%mdl 4096] Endgame KB-KB} e5 {[%emt 0:00:01]} 26. Kg2 {[%emt 0:00:00]} Kf8 {[%emt 0:00:02]} 27. f4 {[%emt 0:00:00]} f6 {[%emt 0:00:09]} 28. fxe5 {[%emt 0:00:00]} fxe5 {[%emt 0:00:01]} 29. Kf3 {[%emt 0:00:00] [#] Threatens to win with Ke4.} Ke7 {[%emt 0:00:01]} 30. Ke4 {[%emt 0:00:01] Strongly threatening Kd5.} Ke6 {[%emt 0:00:01]} 31. Bd2 {[%emt 0:00:06]} Bf8 {[%emt 0:00:10]} 32. Ba5 {[%emt 0:00:02]} Bd6 {[%emt 0:00:10]} 33. Bd2 {[%emt 0:00:04]} a6 {[%emt 0:00:05]} 34. Ba5 {[%emt 0:00:02]} Bb8 {[%emt 0:00:10]} 35. Bd2 {[%emt 0:00:01]} Bc7 {[%emt 0:00:01]} 36. e3 {[%emt 0:00:03]} dxe3 {[%emt 0:00:03] The position is equal.} 37. Bxe3 {[%emt 0:00:02]} a5 {[%emt 0:00:04]} 38. Bd2 {[%emt 0:00:01]} a4 {[%emt 0:00:01]} 39. Bc3 {[%emt 0:00:01]} Bd6 {[%emt 0:00:03]} 40. Ba5 {[%emt 0:00:02]} Bc5 {[%emt 0:00:09]} 41. Bc3 {[%emt 0:00:02]} Bd6 {[%emt 0:00:01]} 42. Ba5 {[%emt 0:00:03]} h5 {[%emt 0:00:28]} 43. Bc3 {[%emt 0:00:02]} Bc7 {[%emt 0:00:05]} 44. Bb4 {[%emt 0:00:01]} Bd8 {[%emt 0:00:10]} 45. Bc3 {[%emt 0:00:04]} Bf6 {[%emt 0:00:01]} 46. h4 {[%emt 0:00:04]} Bh8 {[%emt 0:00:09]} 47. Bb4 {[%emt 0:00:01]} Bg7 {[%emt 0:00:03]} 48. Bc3 {[%emt 0:00:01]} Bf6 {[%emt 0:00:01]} 49. Bb4 {[%emt 0:00:01]} Bd8 {[%emt 0:00:04]} 50. Bc3 {[%emt 0:00:01]} Bc7 {[%emt 0:00:01]} 51. Bb4 {[%emt 0:00:01]} Bb8 {[%emt 0:00:10]} 52. Bc3 {[%emt 0:00:01]} Bc7 {[%emt 0:00:01]} 53. Bb4 {[%emt 0:00:02]} Bb8 {[%emt 0:00:00]} 54. Ba5 {[%emt 0:00:01] Weighted Error Value: White=0.08 (flawless) /Black=0.12 (very precise)} 1/2-1/2

[Event "Romanian Team Blitz Open 2022"]
[Site "Sebes"]
[Date "2022.12.04"]
[Round "4.21"]
[White "Stanca, Adrian"]
[Black "Macarie, Maia-Elisabeta"]
[Result "1-0"]
[ECO "D02"]
[WhiteElo "2182"]
[BlackElo "1100"]
[Annotator "TA"]
[PlyCount "35"]
[EventDate "2022.12.04"]
[EventType "blitz"]
[EventCountry "ROU"]
[SourceTitle "playchess.com"]
[Source "ChessBase"]
[SourceQuality "1"]
[TimeControl "180+2"]

{[%evp 9,35,29,53,39,62,65,120,131,136,134,130,129,235,228,232,197,258,252,245,245,246,254,320,315,312,293,29997,29998]} 1. Nf3 {[%emt 0:00:02]} d5 {[%emt 0:00:01]} 2. g3 {[%emt 0:00:01]} Nc6 {[%emt 0:00:02]} 3. d4 {[%emt 0:00:01]} Nf6 {[%emt 0:00:01]} 4. Bg2 {[%emt 0:00:01]} e6 {[%emt 0:00:01]} 5. O-O {[%emt 0:00:03]} Bd7 {[%emt 0:00:02]} 6. Nbd2 {[%emt 0:00:15] D02: 1 d4 d5 2 Nf3 sidelines, including 2...Nf6 3 g3 and 2...Nf6 3 Bf4.} Bb4 {[%emt 0:00:03]} 7. c3 {[%emt 0:00:04]} Ba5 {[%emt 0:00:02] [#]} ({Black should try} 7... Be7 $14) 8. a4 $146 {[%emt 0:00:02] White is better.} ({Predecessor:} 8. Re1 O-O 9. e4 dxe4 10. Nxe4 Nxe4 11. Rxe4 h6 12. Ne5 Nxe5 13. Rxe5 f6 14. Rxa5 b6 15. Rh5 Be8 16. Rxh6 gxh6 17. Bxh6 b5 18. Qg4+ Kf7 19. Qg7# {1-0 (19) Palici,B-Foisor,V Timisoara 1999}) 8... a6 {[%emt 0:00:02]} 9. Re1 {[%emt 0:00:09]} O-O {[%emt 0:00:02]} 10. e4 {[%emt 0:00:02][%cal Be2e4,Be4e5][%mdl 32]} Re8 {[%emt 0:00:15]} (10... Nxe4 $16 {was necessary.} 11. Nxe4 dxe4) 11. e5 $18 {[%emt 0:00:08]} Ng4 {[%emt 0:00:08]} 12. Nf1 {[%emt 0:00:10]} Ne7 {[%emt 0:00:13]} (12... f6 $142 13. b4 Bb6) 13. h3 {[%emt 0:00:07]} Nh6 {[%emt 0:00:05]} 14. Bxh6 {[%emt 0:00:04]} gxh6 {[%emt 0:00:02]} 15. Qd2 {[%emt 0:00:13]} Rc8 {[%emt 0:00:30]} 16. b4 {[%emt 0:00:02]} ({Don't play} 16. Qxh6 Nf5 17. Qf4 c5 $18) 16... Bb6 {[%emt 0:00:02]} 17. Qxh6 {[%emt 0:00:03] [#] Threatening mate with Ng5.} ({Much less strong is} 17. a5 Ba7 18. Qxh6 Nf5 $18) 17... a5 $2 {[%emt 0:00:10]} (17... Nf5 $18 18. Qf4 Rf8) 18. Ng5 {[%emt 0:00:03] White took control after the opening.   Weighted Error Value: White=0.06 (flawless) /Black=0.81} 1-0

[Event "Romanian Team Blitz Open 2022"]
[Site "Sebes"]
[Date "2022.12.04"]
[Round "4.22"]
[White "Burja-Udrea, Razvan-Andrei"]
[Black "Coicev, Matei-Andrei"]
[Result "0-1"]
[ECO "B45"]
[WhiteElo "1365"]
[BlackElo "2009"]
[Annotator "TA"]
[PlyCount "48"]
[EventDate "2022.12.04"]
[EventType "blitz"]
[EventCountry "ROU"]
[SourceTitle "playchess.com"]
[Source "ChessBase"]
[SourceQuality "1"]
[TimeControl "180+2"]

{[%evp 13,48,-43,-42,-44,-44,-126,-121,-124,-132,-137,-130,-152,-120,-224,-187,-215,-210,-301,-275,-267,-287,-684,-687,-687,-680,-818,-750,-776,-775,-773,-759,-1039,-823,-2439,-2412,-29990,-29991]} 1. e4 {[%emt 0:00:01]} c5 {[%emt 0:00:01]} 2. Nf3 {[%emt 0:00:02]} e6 {[%emt 0:00:01]} 3. d4 {[%emt 0:00:01]} cxd4 {[%emt 0:00:01]} 4. Nxd4 {[%emt 0:03:06]} Nf6 {[%emt 0:00:02]} 5. Nc3 {[%emt 0:00:00]} Nc6 {[%emt 0:00:01]} 6. Be3 {[%emt 0:00:00]} Bb4 {[%emt 0:00:10]} 7. f3 {[%emt 0:00:00]} d5 {[%emt 0:00:03]} 8. Bd3 {[%emt 0:00:00] B45: Sicilian Four Knights.} dxe4 {[%emt 0:00:02]} 9. Bxe4 {[%emt 0:00:00]} ({White should try} 9. Nxc6 $15 bxc6 10. fxe4) 9... Nxe4 $17 {[%emt 0:00:06]} 10. fxe4 {[%emt 0:00:00] Black is better.} Qh4+ {[%emt 0:00:08]} 11. Kf1 {[%emt 0:00:00]} Bxc3 {[%emt 0:00:10]} 12. bxc3 {[%emt 0:00:00]} Qxe4 {[%emt 0:00:05] [#]} 13. Qe2 $146 {[%emt 0:00:00]} (13. Qd3 $17 Qxd3+ 14. cxd3) ({Predecessor:} 13. Qd2 O-O 14. Qf2 e5 15. Nb3 Qc4+ 16. Kg1 Qxc3 17. Rf1 b6 18. h3 Be6 19. Nc1 {0-1 (38) Kuehne,L (1108)-Oganessjan,A (1720) Magdeburg 2014}) 13... O-O {[%emt 0:00:20]} 14. Nxc6 {[%emt 0:00:00]} Qxc6 {[%emt 0:00:07]} 15. Rd1 {[%emt 0:00:00]} (15. Kf2 $142) 15... e5 {[%emt 0:00:07][%cal Be6e5,Be5e4][%mdl 32]} 16. h4 {[%emt 0:00:00]} Be6 {[%emt 0:00:06][%cal Bc8e6,Be6c4,Bc4d5][%mdl 32]} 17. h5 $2 {[%emt 0:00:00]} (17. Kg1) 17... Bc4 $19 {[%emt 0:00:02]} 18. Rd3 {[%emt 0:00:00]} e4 {[%emt 0:00:04]} 19. h6 {[%emt 0:00:00]} g6 {[%emt 0:00:32] [#] aiming for ...Rad8.} 20. Kf2 {[%emt 0:00:00]} exd3 {[%emt 0:00:06]} 21. cxd3 {[%emt 0:00:00]} Bd5 {[%emt 0:00:17][%csl LRc3,LRg2] Threatens to win with ...Rae8.} 22. Qb2 {[%emt 0:00:00]} Qf6+ {[%emt 0:00:10]} 23. Ke2 {[%emt 0:00:00]} Rfe8 {[%emt 0:00:17]} 24. Kd2 {[%emt 0:00:00] [#]} Rxe3 $1 {[%emt 0:00:05] White got outplayed after the opening.   Weighted Error Value: White=1.50/Black=0.29 (precise)} 0-1